Cogmind - Beta 14 @@@ ROGUE MODE // 2024.08.31 @ 01:59:53 Player: Crud Result: Destroyed by G-73 Enforcer with Phase Gun Performance ------------- Evolutions (7) 3500 Regions Visited (16) 3200 Robots Destroyed (79) 395 Value Destroyed (2874) 2874 Prototype IDs (39) 780 Alien Tech Used (0) 0 Bonus (2512) 2512 TOTAL SCORE: 13261 Bonus ------- Triggered Max Security 1000 High Alert Combat Kills 485 Aligned with FarCom 300 Met Warlord at Base 500 MAIN.C Attacked Warlord 500 Friendly Fire -273 Cogmind --------- Core Integrity 0/1300 Matter 267/300 Energy 99/100 System Corruption 1% Temperature Cool (2) Movement Hovering (80) Location -3/Testing Parts ------- > --- POWER (2) -------- (None) > --- PROPULSION (6) --- Combat Antigrav System > --- UTILITY (10) ----- Advanced System Shield > --- WEAPON (3) ------- (None) > --- INVENTORY (5) ---- Improved Heavy Siege Treads Impulse Thruster Array Peak State ------------ > --- POWER ------------ Antimatter Reactor Light Quantum Reactor > --- PROPULSION ------- Antigrav System Antigrav System Antigrav System Improved Antigrav System Improved Antigrav System > --- UTILITY ---------- Enhanced Optical Array Launcher Guidance Computer Layered Medium Armor Plating Advanced System Shield Improved Component Analysis Suite > --- WEAPON ----------- Vortex Rail Vortex Rail > --- INVENTORY -------- Micro Fission Core Advanced Heat Sink Medium Matter Pod RU-N14's Throwing Claymores v3 [Rating: 94] Favorites ----------- Power Antimatter Reactor Engine Light Ion Engine Power Core Light Nuclear Core Reactor Antimatter Reactor Propulsion Antigrav System Treads Improved Heavy Siege Treads Leg Aluminum Leg Wheel Armored Huge Wheel Hover Unit Antigrav System Flight Unit Flying Fortress v7 Utility Launcher Guidance Computer Device Improved Component Analysis Suite Storage Medium Storage Unit Processor Launcher Guidance Computer Hackware Advanced System Shield Protection Layered Medium Armor Plating Weapon Long-range Missile Launcher Energy Gun Backup Laser III Energy Cannon Proton Cannon Ballistic Gun Assault Rifle Ballistic Cannon Hardcell Cannon Launcher Long-range Missile Launcher Special Weapon Mining Laser Slashing Weapon Katana Build | -11 -10 -10 -10 -9 -8 -7 -6 -5 -4 -4 -4 -4 -4 -3 -3 -3 ------- Run | Yrd Mat Min Exi Min Mat Fac Fac Fac Fac Was Fac Upp War Pro Res Tes Slots Evolved 14 | . . . . . 4 2 2 2 2 . . . . . 2 . Power 1 | . . . . . . . 1 . . . . . . . . . Propulsion 4 | . . . . . 2 . . . 1 . . . . . 1 . Utility 8 | . . . . . 1 2 1 2 1 . . . . . 1 . Weapon 1 | . . . . . 1 . . . . . . . . . . . Parts Attached 128 | . 13 3 . . 12 25 16 16 1 . 3 5 17 2 8 7 Power 19 | . . 1 . . 2 3 3 3 . . 1 1 1 1 2 1 Engine 6 | . . 1 . . 1 2 1 1 . . . . . . . . Core 8 | . . . . . 1 1 2 2 . . . . . . 2 . Reactor 5 | . . . . . . . . . . . 1 1 1 1 . 1 Propulsion 27 | . 1 . . . 2 5 . 8 . . . . 8 . 2 1 Treads 1 | . . . . . . . . . . . . . . . 1 . Leg 2 | . 1 . . . . . . . . . . . 1 . . . Wheel 3 | . . . . . . 3 . . . . . . . . . . Hover 16 | . . . . . . . . 7 . . . . 7 . 1 1 Flight 5 | . . . . . 2 2 . 1 . . . . . . . . Utility 38 | . 3 . . . 3 9 8 4 1 . 2 3 2 . 3 . Device 16 | . 1 . . . 2 3 3 . 1 . 1 2 1 . 2 . Storage 6 | . 2 . . . 1 . 3 . . . . . . . . . Processor 6 | . . . . . . 2 1 2 . . 1 . . . . . Hackware 3 | . . . . . . . . 1 . . . 1 . . 1 . Protection 7 | . . . . . . 4 1 1 . . . . 1 . . . Artifact . | . . . . . . . . . . . . . . . . . Weapon 44 | . 9 2 . . 5 8 5 1 . . . 1 6 1 1 5 Energy Gun 14 | . 2 1 . . . 1 . . . . . . 5 . 1 4 Energy Cannon 1 | . . . . . . . 1 . . . . . . . . . Ballistic Gun 4 | . 2 1 . . 1 . . . . . . . . . . . Ballistic Cannon 3 | . . . . . . 1 1 . . . . 1 . . . . Launcher 15 | . 4 . . . 4 2 3 1 . . . . . . . 1 Special Weapon 3 | . 1 . . . . . . . . . . . 1 1 . . Impact Weapon . | . . . . . . . . . . . . . . . . . Slashing Weapon 4 | . . . . . . 4 . . . . . . . . . . Piercing Weapon . | . . . . . . . . . . . . . . . . . Special Melee Weapon . | . . . . . . . . . . . . . . . . . Unidentified Prototypes 6 | . . . . . . . 1 . . . . . 3 . . 2 Parts Lost 47 | . . 1 . . 5 7 . 16 . 1 . . . 6 1 10 Power 8 | . . . . . 1 1 . 4 . . . . . . . 2 Propulsion 15 | . . . . . . 2 . 7 . . . . . 5 . 1 Utility 13 | . . . . . . 4 . 3 . 1 . . . 1 1 3 Weapon 11 | . . 1 . . 4 . . 2 . . . . . . . 4 Highest Loss Streak 8 | . . 1 . . 3 2 . 7 . 1 . . . 6 1 8 To Critical Strikes . | . . . . . . . . . . . . . . . . . Average Slot Usage (%) 59 | . 96 96 100 100 68 55 72 78 31 19 7 34 53 41 24 33 Engine 3 | . 14 14 14 14 7 4 1 2 . . . . 2 . . . Core 1 | . . . . . . . 6 6 . . . . . . 1 2 Reactor 2 | . . . . . . . . . . . . 4 6 4 . 1 Leg 4 | . 28 28 28 28 . . . . . . . . . . . . Hover 5 | . . . . . . . . 15 . . . . 13 17 . 6 Flight 1 | . . . . . 9 2 6 . . . . . . . . . Device 8 | . 6 14 14 14 12 3 19 15 10 3 . 9 5 . 2 3 Storage 5 | . 17 14 14 14 14 7 6 5 5 3 . . . . . . Processor 9 | . . . . . . 9 12 20 15 11 7 10 10 10 9 7 Hackware 2 | . . . . . . . . . . . . 4 5 5 6 4 Energy Gun 4 | . 10 10 14 14 5 . 4 . . . . . 7 . 1 4 Ballistic Gun 1 | . 7 12 14 14 8 . . . . . . . . . . . Ballistic Cannon 1 | . . . . . . 2 . 4 . . . 4 . . . . Launcher 3 | . 6 1 . . 9 3 11 2 . . . . . . . . Peak Build Rating 94 | . 8 9 11 11 43 66 81 89 23 23 20 41 94 79 59 77 Average Rating 46 | . 6 8 9 11 41 43 72 65 23 15 9 39 57 50 35 51 On Entrance 27 | 6 6 8 9 11 11 39 63 81 18 23 6 11 41 71 18 38 Naked Turns . | . . . . . . . . . . . . . . . . . Heaviest Build 57 | 11 18 19 19 19 27 48 54 54 11 11 16 29 57 49 15 25 Greatest Support 75 | 20 20 20 20 20 56 56 56 56 9 9 3 3 57 57 75 42 Greatest Overweight (x) 11 | . . . . . . 11 . 3 1 3 5 9 9 2 . . Average Overweight (x) . | . . . . . . . . . 1 . . 7 . . . . Largest Inventory Capacity 25 | . 10 10 10 10 10 10 25 10 10 10 5 5 5 5 5 5 Average Capacity 7 | . 8 10 10 10 10 10 10 10 10 8 5 5 5 5 5 5 Most Carried 11 | . 9 10 10 10 10 10 11 10 7 9 5 5 5 5 5 5 Average Carried 6 | . 7 9 9 10 8 9 9 8 7 6 4 4 4 4 4 4 Final Capacity 10 | 8 10 10 10 10 10 10 10 10 10 5 5 5 5 5 5 5 Final Carried 10 | 6 9 9 10 10 10 10 10 8 7 5 5 4 5 5 5 4 Class Distribution -------------------- 40% | Mutant 19% | Scout 15% | Derelict-Mutant 10% | Scavenger-Mutant 6% | Bomber 3% | Skirmisher Dominant Class ---------------- Mutant | -10/Materials Mutant | -10/Mines Mutant | -10/Exiles Mutant | -9/Mines Skirmisher | -8/Materials Mutant | -7/Factory Scout | -6/Factory Scout | -5/Factory Scout | -4/Factory Mutant | -4/Waste Mutant | -4/Factory Derelict-Mutant | -4/Upper Caves Mutant | -4/Warlord Scavenger-Mutant | -3/Proximity Caves Mutant | -3/Research Mutant | -3/Testing Resources | -11 -10 -10 -10 -9 -8 -7 -6 -5 -4 -4 -4 -4 -4 -3 -3 -3 ----------- Run | Yrd Mat Min Exi Min Mat Fac Fac Fac Fac Was Fac Upp War Pro Res Tes Matter Collected 2786 | 200 132 101 . 89 649 506 140 114 . . . 147 570 69 . 69 Remotely . | . . . . . . . . . . . . . . . . . Salvage Created 2009 | . 268 69 . 34 807 451 36 166 . . . . . 125 . 53 Parts 143 | . 26 5 . 8 56 29 3 6 . . . . . 8 . 2 Haulers Intercepted 3 | . 1 . . . 2 . . . . . . . . . . . Recyclers Shooed 3 | . 2 . . . 1 . . . . . . . . . . . Parts Field Recycled . | . . . . . . . . . . . . . . . . . Retrieved Matter . | . . . . . . . . . . . . . . . . . Parts Self-Destructed 3 | . . . . . . . . . . . . . . 3 . . Prevented . | . . . . . . . . . . . . . . . . . Kills | -11 -10 -10 -10 -9 -8 -7 -6 -5 -4 -4 -4 -4 -4 -3 -3 -3 ------- Run | Yrd Mat Min Exi Min Mat Fac Fac Fac Fac Was Fac Upp War Pro Res Tes Combat Hostiles Destroyed 58 | . 10 2 . 3 24 8 1 4 . . . . . 5 . 1 Melee 2 | . . . . . . 2 . . . . . . . . . . Guns 17 | . 5 . . 3 8 . . . . . . . . . . 1 Cannons 8 | . . . . . . 6 . . . . . . . 2 . . AOE 31 | . 5 2 . . 16 . 1 4 . . . . . 3 . . Classes Destroyed 15 | . 7 . . . 3 2 . 1 . . . . . 1 . 1 Worker 9 | . 3 . . . 5 . 1 . . . . . . . . . Builder 1 | . . . . . . 1 . . . . . . . . . . Tunneler 1 | . 1 . . . . . . . . . . . . . . . Hauler 3 | . 1 . . . 2 . . . . . . . . . . . Recycler 2 | . 1 . . . . 1 . . . . . . . . . . Operator 1 | . . . . . . . . 1 . . . . . . . . Watcher 3 | . 1 . . . 2 . . . . . . . . . . . Swarmer 17 | . 5 . . 3 4 . . . . . . . . 5 . . Grunt 28 | . 5 2 . . 14 3 1 3 . . . . . . . . Duelist 2 | . . . . . 1 . . 1 . . . . . . . . Sentry 6 | . . . . . 4 2 . . . . . . . . . . Hunter 3 | . . . . . 1 2 . . . . . . . . . . Programmer 1 | . . . . . . 1 . . . . . . . . . . Striker 1 | . . . . . . . . . . . . . . . . 1 Savage 1 | . . . . . . . . . . . . . . 1 . . Best Kill Streak 13 | . 7 2 . 3 13 4 2 5 . . . . . 5 . 1 Combat Bots Only 7 | . 4 2 . 3 7 2 1 4 . . . . . 5 . 1 Max Kills in Single Turn 4 | . 3 1 . 2 3 2 2 4 . . . . . 2 . 1 Gunslinging 1 | . . . . 1 . . . . . . . . . . . . Exploded 3 | . 1 1 . . 3 . 1 3 . . . . . 2 . . Melee 1 | . . . . . . 1 . . . . . . . . . . Uniques/NPCs Destroyed . | . . . . . . . . . . . . . . . . . Combat | -11 -10 -10 -10 -9 -8 -7 -6 -5 -4 -4 -4 -4 -4 -3 -3 -3 -------- Run | Yrd Mat Min Exi Min Mat Fac Fac Fac Fac Was Fac Upp War Pro Res Tes Hostile Shots Fired 783 | . 39 9 . 4 146 170 27 157 . 1 . . 2 96 31 101 Missed 278 | . 13 2 . 3 60 47 11 53 . . . . 1 36 15 37 Damage Taken 9828 | . 305 132 . 9 1415 1459 308 2287 . 32 46 . 34 1417 383 2001 Core 3628 | . 95 21 . . 211 179 15 766 . 32 46 . . 939 306 1018 Absorbed by Shields . | . . . . . . . . . . . . . . . . . Regen/Repaired (Parts) 260 | . . . . . 150 32 59 . . . . . 19 . . . Core Remaining (%) 60 | 100 . . . 53 61 74 98 23 . . . . . 11 . . Volleys Fired 165 | . 32 3 . 2 41 52 20 2 . . . . . 4 . 9 Largest 3 | . 2 2 . 2 3 1 3 2 . . . . . 1 . 3 Hottest 166 | . 80 130 . 85 115 48 166 86 . . . . . . . 165 Shots Fired 268 | . 62 4 . 4 104 52 23 4 . . . . . 4 . 11 Gun 125 | . 46 . . 4 64 . 1 . . . . . . . . 10 Cannon 69 | . . . . . . 52 17 . . . . . . . . . Launcher 69 | . 16 3 . . 40 . 5 4 . . . . . . . 1 Special 5 | . . 1 . . . . . . . . . . . 4 . . Kinetic 111 | . 16 . . 2 41 52 . . . . . . . . . . Thermal 51 | . 24 1 . 2 23 . 1 . . . . . . . . . Explosive 72 | . 16 3 . . 40 . 5 4 . . . . . 4 . . Electromagnetic 26 | . 6 . . . . . 17 . . . . . . . . 3 Entropic 8 | . . . . . . . . . . . . . . . . 8 Robot Hit Streak 12 | . 6 5 . 3 12 7 10 1 . . . . . 3 . 12 Robot Miss Streak 4 | . 4 . . 1 2 2 1 1 . . . . . . . 1 Penetration Max 1 | . . . . . . 1 . . . . . . . . . . Secondary Targets 1 | . . . . 1 . . . . . . . . . . . . Max Gunslinging Chain 1 | . . . . 1 . . . . . . . . . . . . Shots Hit Robots 161 | . 26 3 . 3 51 49 17 1 . . . . . 2 . 9 Core Hits 166 | . 28 8 . 3 69 16 12 18 . . . . . 6 . 6 Critical Kills 1 | . 1 . . . . . . . . . . . . . . . Critical Parts Destroyed . | . . . . . . . . . . . . . . . . . Critical Strikes 11 | . 2 . . . 1 6 1 . . . . . . 1 . . Burn 2 | . 1 . . . 1 . . . . . . . . . . . Destroy 1 | . 1 . . . . . . . . . . . . . . . Blast 4 | . . . . . . 4 . . . . . . . . . . Corrupt 1 | . . . . . . . 1 . . . . . . . . . Sever 3 | . . . . . . 2 . . . . . . . 1 . . Melee Attacks 16 | . . . . . . 16 . . . . . . . . . . Impact . | . . . . . . . . . . . . . . . . . Slashing 16 | . . . . . . 16 . . . . . . . . . . Piercing . | . . . . . . . . . . . . . . . . . Sneak Attacks . | . . . . . . . . . . . . . . . . . Combat Hostiles . | . . . . . . . . . . . . . . . . . Follow-up Attacks 1 | . . . . . . 1 . . . . . . . . . . Damage Inflicted 8096 | . 1182 205 . 38 2655 1394 585 846 . . 1 . . 784 5 401 Guns 1182 | . 296 . . 38 551 . . . . . . . . . . 297 Cannons 1048 | . . . . . . 958 90 . . . . . . . . . Explosions 5204 | . 886 205 . . 2104 . 495 819 . . . . . 591 . 104 Melee 436 | . . . . . . 436 . . . . . . . . . . Ramming 33 | . . . . . . . . 27 . . 1 . . . 5 . Kinetic 1406 | . 88 . . 20 340 958 . . . . . . . . . . Thermal 378 | . 149 . . 18 211 . . . . . . . . . . . Explosive 5100 | . 886 205 . . 2104 . 495 819 . . . . . 591 . . Electromagnetic 255 | . 59 . . . . . 90 . . . . . . . . 106 Impact . | . . . . . . . . . . . . . . . . . Slashing 629 | . . . . . . 436 . . . . . . . 193 . . Piercing . | . . . . . . . . . . . . . . . . . Entropic 295 | . . . . . . . . . . . . . . . . 295 Highest Corruption 9 | . . . . . . 2 4 9 . 6 6 6 6 3 1 1 Average Corruption 4 | . . . . . . 1 3 3 . 6 6 6 6 2 1 1 Corruption Purged . | . . . . . . . . . . . . . . . . . Corruption Blocked . | . . . . . . . . . . . . . . . . . Effects 60 | . . . . . . 3 6 3 . 1 2 27 13 4 . 1 Message Errors 17 | . . . . . . 2 . . . . 1 8 5 1 . . Matter Fused 16 | . . . . . . 1 2 1 . . 1 5 5 1 . . Heat Flow Errors 5 | . . . . . . . . 1 . . . 3 . 1 . . Energy Discharges 6 | . . . . . . . 2 1 . . . 2 . 1 . . Parts Fused 1 | . . . . . . . . . . . . . 1 . . . Data Loss (minor) 6 | . . . . . . . . . . . . 5 . . . 1 Data Loss (major) 4 | . . . . . . . 1 . . . . 2 1 . . . Alerts 5 | . . . . . . . 1 . . 1 . 2 1 . . . Overload Shots . | . . . . . . . . . . . . . . . . . Overflow Damage 164 | . 6 . . . 35 44 38 19 . . . . . 22 . . Projectiles 32 | . . . . . . 32 . . . . . . . . . . Explosions 120 | . 6 . . . 35 . 38 19 . . . . . 22 . . Melee 12 | . . . . . . 12 . . . . . . . . . . Knockbacks 17 | . . . . . . 15 . 2 . . . . . . . . Impact 2 | . . . . . . . . 2 . . . . . . . . Kinetic 14 | . . . . . . 14 . . . . . . . . . . Secondary 1 | . . . . . . 1 . . . . . . . . . . Self-Inflicted Damage 469 | . 50 58 . . 103 . . 202 . . . . . . 2 54 Shots 19 | . 2 3 . . 6 . . 4 . . . . . . . 4 Rammed 6 | . . . . . . . . 2 . . 1 . . . 2 1 Targets Rammed 6 | . . . . . . . . 2 . . 1 . . . 2 1 Kicked . | . . . . . . . . . . . . . . . . . Crushed . | . . . . . . . . . . . . . . . . . Highest Temperature 559 | . 18 16 . . 106 45 16 95 . . . 248 390 559 . 47 Average Temperature 168 | . 7 8 . . 35 17 11 48 . . . 116 222 252 . 12 Received Heat Transfer 1979 | . 96 42 . . 495 489 . 318 . . . . . 202 93 244 Effects 25 | . . . . . . . . . . . . . 14 11 . . Shutdowns 12 | . . . . . . . . . . . . . 8 4 . . Energy Bleed 2 | . . . . . . . . . . . . . . 2 . . Interference 3 | . . . . . . . . . . . . . 2 1 . . Matter Decay 2 | . . . . . . . . . . . . . 2 . . . Short Circuit 5 | . . . . . . . . . . . . . 2 3 . . Damage (minor) 1 | . . . . . . . . . . . . . . 1 . . Siege Activations . | . . . . . . . . . . . . . . . . . Robots Corrupted . | . . . . . . . . . . . . . . . . . Combat Hostiles . | . . . . . . . . . . . . . . . . . Parts Fried . | . . . . . . . . . . . . . . . . . Impact Corruptions . | . . . . . . . . . . . . . . . . . Robots Melted . | . . . . . . . . . . . . . . . . . Combat Hostiles . | . . . . . . . . . . . . . . . . . Parts Melted . | . . . . . . . . . . . . . . . . . Heat Transferred 1099 | . 470 . . 37 592 . . . . . . . . . . . Parts Sabotaged 3 | . . . . . . . . 3 . . . . . . . . Parts Stolen . | . . . . . . . . . . . . . . . . . Parts Stripped . | . . . . . . . . . . . . . . . . . Power Chain Reactions . | . . . . . . . . . . . . . . . . . Alert | -11 -10 -10 -10 -9 -8 -7 -6 -5 -4 -4 -4 -4 -4 -3 -3 -3 ------- Run | Yrd Mat Min Exi Min Mat Fac Fac Fac Fac Was Fac Upp War Pro Res Tes Peak Influence 1685 | . 279 177 . 75 1070 767 369 435 139 53 42 . . . 235 1685 Initial 482 | . . 106 . . 29 482 306 84 124 48 37 . . . 185 132 Average 375 | . 169 175 . 71 517 621 255 290 130 48 39 . . . 189 1610 Maximum Alert Level 5 | . 1 . . . 3 3 1 2 . . . . . . 1 5 Low Security (%) 36 | . 52 100 . 100 20 . 35 18 100 100 100 . . . 91 . Level 1 32 | . 47 . . . 13 . 64 48 . . . . . . 8 . Level 2 20 | . . . . . 35 81 . 33 . . . . . . . . Level 3 5 | . . . . . 30 18 . . . . . . . . . . Level 4 . | . . . . . . . . . . . . . . . . . Level 5 . | . . . . . . . . . . . . . . . . . High Security . | . . . . . . . . . . . . . . . . . Max Security 5 | . . . . . . . . . . . . . . . . 99 Squads Dispatched 43 | . 2 . . . 7 3 8 6 . . 1 . . . 4 12 Investigation 20 | . 2 . . . 5 2 6 3 . . . . . . 2 . Extermination 3 | . . . . . . . 1 1 . . . . . . 1 . Reinforcement 6 | . . . . . 1 1 1 1 . . 1 . . . 1 . Assault 14 | . . . . . 1 . . 1 . . . . . . . 12 Garrison . | . . . . . . . . . . . . . . . . . Intercept . | . . . . . . . . . . . . . . . . . Searches Triggered . | . . . . . . . . . . . . . . . . . Construction Impeded . | . . . . . . . . . . . . . . . . . Haulers Reinforced . | . . . . . . . . . . . . . . . . . Active Scanning Responses . | . . . . . . . . . . . . . . . . . Cargo Convoy Interrupts . | . . . . . . . . . . . . . . . . . Stealth | -11 -10 -10 -10 -9 -8 -7 -6 -5 -4 -4 -4 -4 -4 -3 -3 -3 --------- Run | Yrd Mat Min Exi Min Mat Fac Fac Fac Fac Was Fac Upp War Pro Res Tes Distress Signals 6 | . 1 . . . 3 1 . . . . . . 1 . . . Communications Jammed . | . . . . . . . . . . . . . . . . . Distress Signals . | . . . . . . . . . . . . . . . . . Times Spotted 188 | . 16 3 . 2 45 15 6 23 1 5 . . 14 19 9 30 Peak Tracking Total 19 | . 5 3 . 2 17 6 3 9 1 5 1 . 5 15 6 19 Tactical Retreats 25 | . 1 . . . 2 4 3 6 . . . . 1 5 1 2 Traps | -11 -10 -10 -10 -9 -8 -7 -6 -5 -4 -4 -4 -4 -4 -3 -3 -3 ------- Run | Yrd Mat Min Exi Min Mat Fac Fac Fac Fac Was Fac Upp War Pro Res Tes Traps Triggered 5 | . 1 . . . . 1 1 1 1 . . . . . . . Indirectly . | . . . . . . . . . . . . . . . . . Trap Hack Attempts . | . . . . . . . . . . . . . . . . . Triggered . | . . . . . . . . . . . . . . . . . Disarmed . | . . . . . . . . . . . . . . . . . Reprogrammed . | . . . . . . . . . . . . . . . . . Reused . | . . . . . . . . . . . . . . . . . Traps Extracted . | . . . . . . . . . . . . . . . . . Installed . | . . . . . . . . . . . . . . . . . Triggered 12 | . . . . . . . . . . . . . 12 . . . Machines | -11 -10 -10 -10 -9 -8 -7 -6 -5 -4 -4 -4 -4 -4 -3 -3 -3 ---------- Run | Yrd Mat Min Exi Min Mat Fac Fac Fac Fac Was Fac Upp War Pro Res Tes Machines Disabled 20 | . 3 . . . 7 . 2 6 . . . . . . . 2 Max in Single Turn 6 | . 2 . . . 1 . 2 6 . . . . . . . 1 Garrison Access 1 | . . . . . 1 . . . . . . . . . . . Machines Repaired . | . . . . . . . . . . . . . . . . . Machines Dismantled . | . . . . . . . . . . . . . . . . . Machines Sabotaged 4 | . . . . . 4 . . . . . . . . . . . Overloaded Fab Kills . | . . . . . . . . . . . . . . . . . Hacking | -11 -10 -10 -10 -9 -8 -7 -6 -5 -4 -4 -4 -4 -4 -3 -3 -3 --------- Run | Yrd Mat Min Exi Min Mat Fac Fac Fac Fac Was Fac Upp War Pro Res Tes Machines Accessed 49 | . 4 . 2 1 7 7 10 8 . . 2 1 4 . 3 . Terminals 28 | . 4 . . 1 6 4 4 6 . . 2 . . . 1 . Fabricators 3 | . . . . . . . 3 . . . . . . . . . Repair Stations 7 | . . . . . 1 2 2 2 . . . . . . . . Recycling Units 1 | . . . . . . . 1 . . . . . . . . . Scanalyzers 2 | . . . . . . 1 . . . . . . . . 1 . Garrison Access 1 | . . . . . . . . . . . . . . . 1 . Total Hacks 115 | . 14 . 10 2 16 14 22 15 . . 3 3 8 . 8 . Successful 66 | . 7 . 10 1 14 6 10 4 . . 1 3 8 . 2 . Failed 49 | . 7 . . 1 2 8 12 11 . . 2 . . . 6 . Catastrophic 14 | . 1 . . . . 2 4 4 . . 1 . . . 2 . Database Lockouts . | . . . . . . . . . . . . . . . . . Manual 54 | . 14 . 1 . 11 8 14 4 . . . . . . 2 . Terminals 57 | . 14 . . 2 10 6 6 11 . . 3 . . . 5 . Fabricators 5 | . . . . . . . 5 . . . . . . . . . Repair Stations 21 | . . . . . 6 4 7 4 . . . . . . . . Recycling Units 4 | . . . . . . . 4 . . . . . . . . . Scanalyzers 6 | . . . . . . 4 . . . . . . . . 2 . Garrison Access 1 | . . . . . . . . . . . . . . . 1 . Terminal Hacks 35 | . 5 . 10 1 . 1 2 2 . . 1 3 8 . 2 . Record 16 | . . . 9 . . . . 1 . . . 3 2 . 1 . Part Schematic 1 | . 1 . . . . . . . . . . . . . . . Robot Analysis 3 | . 1 . . . . . 1 . . . . . . . 1 . Prototype ID Bank 5 | . 1 . . . . . . . . . . . 4 . . . Open Door 2 | . . . . . . . . . . . . . 2 . . . Open DSF 4 | . . . . . . 1 1 1 . . 1 . . . . . Terminal Index 1 | . 1 . . . . . . . . . . . . . . . Recall Investigation 1 | . 1 . . . . . . . . . . . . . . . Zone Layout 1 | . . . . 1 . . . . . . . . . . . . Derelict Proto ID Bank 1 | . . . 1 . . . . . . . . . . . . . Fabricator Hacks 1 | . . . . . . . 1 . . . . . . . . . Load Schematic 1 | . . . . . . . 1 . . . . . . . . . Repair Station Hacks 7 | . . . . . 4 2 . 1 . . . . . . . . Scan Component 4 | . . . . . 2 1 . 1 . . . . . . . . Repair 3 | . . . . . 2 1 . . . . . . . . . . Recycling Unit Hacks 1 | . . . . . . . 1 . . . . . . . . . Retrieve Matter 1 | . . . . . . . 1 . . . . . . . . . Scanalyzer 3 | . . . . . . 3 . . . . . . . . . . Insert Component 2 | . . . . . . 2 . . . . . . . . . . Analyze 1 | . . . . . . 1 . . . . . . . . . . Garrison Access Hacks . | . . . . . . . . . . . . . . . . . Unauthorized Hacks 19 | . 2 . . . 10 . 6 1 . . . . . . . . Terminals 12 | . 2 . . . 9 . . 1 . . . . . . . . Track 3 | . 1 . . . 2 . . . . . . . . . . . Botnet 3 | . 1 . . . 1 . . 1 . . . . . . . . Operators 1 | . . . . . 1 . . . . . . . . . . . Sabotage 5 | . . . . . 5 . . . . . . . . . . . Fabricators 3 | . . . . . . . 3 . . . . . . . . . Haulers 1 | . . . . . . . 1 . . . . . . . . . Download 2 | . . . . . . . 2 . . . . . . . . . Repair Stations 4 | . . . . . 1 . 3 . . . . . . . . . Mechanics 2 | . . . . . 1 . 1 . . . . . . . . . Patch 2 | . . . . . . . 2 . . . . . . . . . Recycling Units . | . . . . . . . . . . . . . . . . . Scanalyzers . | . . . . . . . . . . . . . . . . . Garrison Access . | . . . . . . . . . . . . . . . . . Data Cores Recovered . | . . . . . . . . . . . . . . . . . Used . | . . . . . . . . . . . . . . . . . Hacking Detections 29 | . 4 . . 1 1 6 6 7 . . 1 . . . 3 . Full Trace Events 12 | . 2 . . 1 1 2 2 2 . . . . . . 2 . Feedback Events 3 | . . . . . . 1 2 . . . . . . . . . Corruption 3 | . . . . . . 1 2 . . . . . . . . . Feedback Blocked . | . . . . . . . . . . . . . . . . . Robot Schematics Acquired . | . . . . . . . . . . . . . . . . . Robots Built . | . . . . . . . . . . . . . . . . . Authchips . | . . . . . . . . . . . . . . . . . Time . | . . . . . . . . . . . . . . . . . Total Robot Build Rating . | . . . . . . . . . . . . . . . . . Part Schematics Acquired 4 | . 1 . . . . 1 2 . . . . . . . . . Parts Built . | . . . . . . . . . . . . . . . . . Authchips . | . . . . . . . . . . . . . . . . . Time . | . . . . . . . . . . . . . . . . . Total Part Build Rating . | . . . . . . . . . . . . . . . . . Parts Repaired 3 | . . . . . 2 1 . . . . . . . . . . Time 65 | . . . . . 52 13 . . . . . . . . . . Parts Recycled . | . . . . . . . . . . . . . . . . . Recycled Matter . | . . . . . . . . . . . . . . . . . Retrieved Matter . | . . . . . . . . . . . . . . . . . Retrieved Components . | . . . . . . . . . . . . . . . . . Parts Scanalyzed 1 | . . . . . . 1 . . . . . . . . . . Part Schematics Acquired 1 | . . . . . . 1 . . . . . . . . . . Parts Damaged 1 | . . . . . . 1 . . . . . . . . . . Bothacking | -11 -10 -10 -10 -9 -8 -7 -6 -5 -4 -4 -4 -4 -4 -3 -3 -3 ------------ Run | Yrd Mat Min Exi Min Mat Fac Fac Fac Fac Was Fac Upp War Pro Res Tes Used RIF Installer . | . . . . . . . . . . . . . . . . . Robots Hacked . | . . . . . . . . . . . . . . . . . Non-combat . | . . . . . . . . . . . . . . . . . Combat . | . . . . . . . . . . . . . . . . . Robot Hacks Applied . | . . . . . . . . . . . . . . . . . Relay Couplers Released 2 | . . . . . 2 . . . . . . . . . . . Machine Destruction 2 | . . . . . 2 . . . . . . . . . . . Fabnet Peak Effective % . | . . . . . . . . . . . . . . . . . Robots Rewired . | . . . . . . . . . . . . . . . . . Allies Hacked . | . . . . . . . . . . . . . . . . . Hacks Repelled . | . . . . . . . . . . . . . . . . . Allies | -11 -10 -10 -10 -9 -8 -7 -6 -5 -4 -4 -4 -4 -4 -3 -3 -3 -------- Run | Yrd Mat Min Exi Min Mat Fac Fac Fac Fac Was Fac Upp War Pro Res Tes Total Allies 1 | . . 1 . . . . . . . . . . . . . . Largest Group 1 | . . 1 1 . . . . . . . . . . . . . Highest-Rated Group 31 | . . 31 31 . . . . . . . . . . . . . Highest-Rated Ally 31 | . . 31 31 . . . . . . . . . . . . . Total Orders . | . . . . . . . . . . . . . . . . . Ally Attacks . | . . . . . . . . . . . . . . . . . Total Damage . | . . . . . . . . . . . . . . . . . Kills . | . . . . . . . . . . . . . . . . . Allies Corrupted . | . . . . . . . . . . . . . . . . . Allies Melted . | . . . . . . . . . . . . . . . . . Intel | -11 -10 -10 -10 -9 -8 -7 -6 -5 -4 -4 -4 -4 -4 -3 -3 -3 ------- Run | Yrd Mat Min Exi Min Mat Fac Fac Fac Fac Was Fac Upp War Pro Res Tes Robot Analysis Total 3 | . 1 . . . . . 1 . . . . . . . 1 . Derelict Logs Recovered 2 | . . 1 . . . . . . . . . 1 . . . . Drone Launches . | . . . . . . . . . . . . . . . . . Drone Recoveries . | . . . . . . . . . . . . . . . . . Exploration | -11 -10 -10 -10 -9 -8 -7 -6 -5 -4 -4 -4 -4 -4 -3 -3 -3 ------------- Run | Yrd Mat Min Exi Min Mat Fac Fac Fac Fac Was Fac Upp War Pro Res Tes Turns Passed 8138 | . 713 120 295 52 441 637 1075 656 19 81 141 895 2110 389 283 231 Spaces Moved 8062 | 1 473 82 244 39 449 593 1782 779 19 92 239 222 1755 655 367 271 Core 1256 | . . . . . . 6 . 26 19 92 239 222 157 214 281 . Treads 48 | . . . . . . . . . . . . . . . 48 . Legs 844 | 1 473 82 244 39 . . . . . . . . 5 . . . Wheels 215 | . . . . . . 215 . . . . . . . . . . Hover 3006 | . . . . . . . . 663 . . . . 1593 441 38 271 Flight 2693 | . . . . . 449 372 1782 90 . . . . . . . . Fastest Speed 44 | 120 120 120 120 120 50 50 50 50 100 50 50 50 44 44 50 66 Average Speed 86 | 120 120 120 120 120 50 70 50 68 100 82 54 402 112 56 70 73 Slowest Speed 600 | 120 120 120 120 120 50 600 50 200 100 200 300 500 500 150 180 80 Overloaded Moves . | . . . . . . . . . . . . . . . . . Propulsion Burnouts . | . . . . . . . . . . . . . . . . . Robots Hopped 2 | . . . . . . . 2 . . . . . . . . . Cave-ins Triggered . | . . . . . . . . . . . . . . . . . Exploration Rate (%) 35 | 2 59 21 60 10 51 14 27 26 1 69 4 32 93 83 11 32 Regions Visited 16 Branch Regions 7 Pre-discovered Areas 3 | . . 2 . . . . . . . . . 1 . . . . Known Exits Taken . | . . . . . . . . . . . . . . . . . Unknown Exits Taken 14 | 1 1 1 1 1 1 1 1 1 . . 1 1 1 1 1 . Scrap Searched 6 | . . . . 1 . . . . . . . 3 . 2 . . Spaces Dug 7 | . 7 . . . . . . . . . . . . . . . Terrain Destroyed 428 | . 52 30 . . 202 9 23 54 . . . . . 46 . 12 Melee . | . . . . . . . . . . . . . . . . . Projectile 21 | . . . . . . 9 . . . . . . . . . 12 AOE 407 | . 52 30 . . 202 . 23 54 . . . . . 46 . . Terrain Rammed . | . . . . . . . . . . . . . . . . . Walls Destroyed . | . . . . . . . . . . . . . . . . . Machines Disabled . | . . . . . . . . . . . . . . . . . Actions | -11 -10 -10 -10 -9 -8 -7 -6 -5 -4 -4 -4 -4 -4 -3 -3 -3 --------- Run | Yrd Mat Min Exi Min Mat Fac Fac Fac Fac Was Fac Upp War Pro Res Tes Total 8955 | . 559 96 247 40 580 737 1945 897 20 97 248 226 1906 672 394 291 Wait 389 | . 12 8 . . 57 18 87 87 . 4 1 . 100 8 7 . Move 8043 | . 472 81 243 38 448 592 1777 778 19 91 238 221 1754 654 366 271 Hop 2 | . . . . . . . 2 . . . . . . . . . Pick Up 92 | . 15 1 1 . 13 16 23 8 . . 1 . 7 1 4 2 Fast Attach 44 | . 1 . . . 1 9 5 3 . . 3 4 11 1 3 3 Attach 51 | . . 1 . . 8 10 3 12 1 . . 1 5 1 5 4 Detach 23 | . . . . . 1 4 . 3 . 2 1 . 9 . 3 . Swap 33 | . 12 2 . . 3 6 8 1 . . . . 1 . . . Drop 92 | . 15 . 3 . 8 15 20 1 . . 3 . 19 3 4 1 Fire 165 | . 32 3 . 2 41 52 20 2 . . . . . 4 . 9 Melee 15 | . . . . . . 15 . . . . . . . . . . Ram 6 | . . . . . . . . 2 . . 1 . . . 2 1 Kick . | . . . . . . . . . . . . . . . . . Crush . | . . . . . . . . . . . . . . . . . Escape Stasis . | . . . . . . . . . . . . . . . . . Rewire . | . . . . . . . . . . . . . . . . . Trap . | . . . . . . . . . . . . . . . . . Miscellaneous . | . . . . . . . . . . . . . . . . . Route ------- -11/Scrapyard -10/Materials (discovered 3 exits: [*Mat x2] / [*Min]) -10/Mines -10/Exiles -9/Mines -8/Materials -7/Factory -6/Factory -5/Factory -4/Factory -4/Waste -4/Factory (discovered 2 exits: *Upp / DSF) -4/Upper Caves -4/Warlord -3/Proximity Caves -3/Research -3/Testing History --------- Turn | Location | Event 1 | -11/Scrapyard | Discovered new exit (range 0) 1 | -11/Scrapyard | Entered Materials 226 | -10/Materials | Discovered new exit (range 15) 320 | -10/Materials | Build established: Mutant 439 | -10/Materials | Discovered new exit (range 9) 607 | -10/Materials | Discovered new exit (range 11) 714 | -10/Materials | Entered Mines 722 | -10/Mines | Escorted by a lone wolf Derelict 730 | -10/Mines | Met a Derelict bent on vengeance 742 | -10/Mines | Learned location of Storage (-9) 792 | -10/Mines | Learned location of Zion (-7) 821 | -10/Mines | Deemed a non-threat by the Exiles lab entrance 821 | -10/Mines | Discovered new exit (range 5) 834 | -10/Mines | Entered Exiles 834 | -10/Exiles | Accompanied by 1 ally 866 | -10/Exiles | Met 8R-AWN 886 | -10/Exiles | Met EX-HEX 921 | -10/Exiles | Met EX-BIN 941 | -10/Exiles | Aligned with FarCom system 942 | -10/Exiles | Given EX-Vault access code 975 | -10/Exiles | Opened EX-Vault 991 | -10/Exiles | Found Flying Fortress v7 1016 | -10/Exiles | Warned to stay clear of 0b10 Research branches 1051 | -10/Exiles | Met EX-DEC 1119 | -10/Exiles | Discovered new exit (range 10) 1129 | -10/Exiles | Left Exiles lab with Flying Fortress v7 1129 | -10/Exiles | Entered Mines 1165 | -9/Mines | Discovered new exit (range 9) 1181 | -9/Mines | Entered Materials 1181 | -8/Materials | Evolved 4 slots: Propulsion x2, Utility x1, Weapon x1 1352 | -8/Materials | Destroyed 7 combat bots 1390 | -8/Materials | Repaired Grenade Launcher 1416 | -8/Materials | Repaired Assault Rifle 1605 | -8/Materials | Discovered new exit (range 16) 1622 | -8/Materials | Entered Factory 1622 | -7/Factory | Evolved 2 slots: Utility x2 1651 | -7/Factory | Repaired Lgt. Ion Engine 1651 | -7/Factory | Lost 3 parts (3w) 2223 | -7/Factory | Discovered new exit (range 16) 2259 | -7/Factory | Entered another Factory area 2259 | -6/Factory | Evolved 2 slots: Power x1, Utility x1 2298 | -6/Factory | Identified exit to DSF 2616 | -6/Factory | Build established: Scout 2827 | -6/Factory | Spotted B-75 Beast 3285 | -6/Factory | Discovered new exit (range 15) 3334 | -6/Factory | Entered another Factory area 3334 | -5/Factory | Evolved 2 slots: Utility x2 3634 | -5/Factory | First assault squad dispatched 3812 | -5/Factory | Spotted B-75 Beast 3943 | -5/Factory | Lost 5 parts (1p2n1u1w) 3975 | -5/Factory | Discovered new exit (range 15) 3982 | -5/Factory | Core integrity fell below 50% 3990 | -5/Factory | Entered another Factory area 3990 | -4/Factory | Evolved 2 slots: Propulsion x1, Utility x1 4009 | -4/Factory | Sucked down chute 4009 | -4/Factory | Entered Waste 4016 | -4/Waste | Lost 7 parts (2p4n1u) 4024 | -4/Waste | EMP discharged 4027 | -4/Waste | Spotted C-40 Crusher 4046 | -4/Waste | Spotted C-40 Crusher 4063 | -4/Waste | Crushed by Compactor (1 part destroyed, 2 dropped) 4068 | -4/Waste | Spotted C-40 Crusher 4072 | -4/Waste | Spotted C-40 Crusher 4080 | -4/Waste | Spotted C-40 Crusher 4085 | -4/Waste | Discovered new exit (range 10) 4085 | -4/Waste | Spotted C-40 Crusher 4090 | -4/Waste | Entered Factory 4120 | -4/Factory | Found Quantum Capacitor 4151 | -4/Factory | Discovered new exit (range 9) 4161 | -4/Factory | Identified exit to DSF 4231 | -4/Factory | Entered Upper Caves 4240 | -4/Upper Caves | Build established: Mutant 4249 | -4/Upper Caves | A Derelict revealed a hidden shortcut to "reach the base" 4279 | -4/Upper Caves | Learned Research terminal intel 4558 | -4/Upper Caves | Build established: Derelict-Mutant 5126 | -4/Upper Caves | Entered Warlord 5413 | -4/Warlord | Discovered new exit (range 14) 5608 | -4/Warlord | System corruption cleaned by Quarantine Array 5868 | -4/Warlord | Found Prototype Device 5868 | -4/Warlord | Identified Minesniffer Drone Bay 6083 | -4/Warlord | Build established: Bomber 6260 | -4/Warlord | Warlord's base attacked by MAIN.C 6276 | -4/Warlord | Found Prototype Energy Gun 6277 | -4/Warlord | Identified Vortex Rail 6339 | -4/Warlord | Met Warlord 6585 | -4/Warlord | Build established: Mutant 6610 | -4/Warlord | Warlord forces counterattacked 6626 | -4/Warlord | Found Prototype Special Weapon 6626 | -4/Warlord | Identified RU-N14's Throwing Claymores v3 6666 | -4/Warlord | Spotted Striker 6685 | -4/Warlord | Spotted Executioner 6720 | -4/Warlord | Lost 4 allies 6866 | -4/Warlord | Found Vortex Rail 6935 | -4/Warlord | Warlord base infiltrated, sounded retreat 6965 | -4/Warlord | Build established: Scavenger-Mutant 7165 | -4/Warlord | Spotted Executioner 7236 | -4/Warlord | Entered Proximity Caves 7478 | -3/Proximity Caves | Attracted the attention of an 0b10 checkpoint 7546 | -3/Proximity Caves | Core integrity fell below 50% 7551 | -3/Proximity Caves | Lost 6 parts (5n1u) 7555 | -3/Proximity Caves | Core integrity fell below 20% 7619 | -3/Proximity Caves | Discovered new exit (range 3) 7625 | -3/Proximity Caves | Entered Research 7625 | -3/Research | Evolved 2 slots: Propulsion x1, Utility x1 7626 | -3/Research | Loaded intel: 21 terminal locations 7863 | -3/Research | Discovered new exit (range 21) 7905 | -3/Research | Found Gamma Bomb Array 7908 | -3/Research | Entered Testing 7909 | -3/Testing | Maximum security lockdown engaged 8013 | -3/Testing | Found Prototype Energy Gun 8013 | -3/Testing | Identified Hyp. EM Gauss Rifle 8034 | -3/Testing | Spotted Executioner 8034 | -3/Testing | Spotted Striker 8034 | -3/Testing | Spotted Striker 8101 | -3/Testing | Destroyed Striker 8115 | -3/Testing | Core integrity fell below 50% 8132 | -3/Testing | Core integrity fell below 20% 8139 | -3/Testing | Destroyed by G-73 Enforcer with Phase Gun Last Messages --------------- 08119_ Penetrated by Slug. 08119_ M-36 Artificer suffers critical hit (Destroy). 08119_ M-36 Artificer destroyed. 08121_ Vortex Rail destroyed. 08121_ Critical hit (Burn: +37). 08128_ Slammed into Executioner. 08129_ Slug penetrates Wall. 08130_ M-36 Artificer repairs G-73 Enforcer. 08131_ C-30 ARC bursts open, deploying its payload. 08131_ G-73 Enforcer unfolds itself. 08131_ G-67 Veteran unfolds itself. 08131_ B-74 Champion unfolds itself. 08134_ Executioner heat damages Prototype Processor. 08136_ Executioner overheating. 08137_ Executioner heat damages core (-16). 08137_ Executioner overheating. 08138_ M-36 Artificer repairs G-67 Veteran. Map ----- +----------------------------------------------------+ | | | ??????????????????????????????????????? | | ??????????????????????????????????????? | | ??????????????????????????????????????? | | ??????????????????????????????????????? | | ??????????????????????????????????????? | | ??????????????????????????????????????? | | ????????????????????????##+##+#???????? | | ???????????????????????? ???????? | | ???????????????????????? #???????? | | ????????????????????????# #???????? | | ????????????????????????# #???????? | | ???????????????????????## ########+ | | ??????????????##+#???### ?? | | ?????????????? ???? ? | | ?????????????? ????? ? | | ?????????????? #?????# ? | | ?????????????# #?????# """"" """" | | ?????????????# #?????# """"" """" | | ?????????????# #??#### """"" """" | | ?????????????# ##?# | | ?????????????# ;??# """"" """" | | ?????????????# #??# """"" """" | | ?????????????# #??# """"" """" | | ?????????????+ #??#### | | ?????????????#@ #?????# """ """" | | ?????????????# #?????# """ """" | | ?????????????#K #?????# """ """" | | ?????????????# #?????# | | ?????????????; #?????# i | | ?????????????# #?????# g b | | ????########## #?????# ######+####### | | ????# # #?????# #?# #?? | | ????# """ # #?????# #?# #?? | | ????# """ !#l #?????# #?# #?? | | ????# """ # #?????# #?# #?? | | ????# !#g #?????# #?# #?? | | ????# "" "" # E #?????# "?# #?? | | ????# ""T"" #ggg#?????# #?# [[ ]#?? | | ???# """ / #?????# #?# [ [[ #?? | | ? ??# b" gg###???# #?# #?? | | ?? ?########"# ""#???# #?###+######?? | | ??# ## # %b##???# #???# #??????? | | ???# # # ! ###### #???# ######## | | ????#" = / "%" #???# | | ?????# *%! # [ ###### #???# | | ?????#!= = " #????# ##### | | ?????# "######????# | | ?????##"##""##?????????################ | | ??????##?#?#??????????????????????????? | +----------------------------------------------------+ Best States ------------- Heat Dissipation 71 Energy Generation 41 Energy Capacity 950 Matter Stores 300 Matter Capacity 300 Sight Range 22 Terrain Scan Range 20 Terrain Scan Density 210 Additional Mass Support 6 Armor Coverage 600 Evasion (%) 60 Melee Accuracy 6 Launcher Accuracy 40 Recoil Reduction 2 Offensive Hacking 14 Defensive Hacking 14 Item Schematics ----------------- Med. Storage Unit | -10/Materials | Hacked Arm. Huge Wheel | -7/Factory | Scanalyzed Adv. Cooling System | -6/Factory | Downloaded Nova Cannon | -6/Factory | Downloaded Robot Schematics ------------------ None Fabricated ------------ Nothing Alien Tech Used ----------------- None Achievements -------------- A Powerful Ally? Charge!!! Challenges ------------ None Game ------ Seed BlastReactiveRipper Manual? 0 Play Time 02:55:55 Cumulative 37.5 hours Start 2024.08.25 @ 09:52:24 End 2024.08.31 @ 01:59:53 Sessions 3 Manual Loads 0 Difficulty Rogue Special Mode None Game No. 41 Rogue 41 Adventurer 0 Explorer 0 Win Type - Total 0 Types 0/0/0/0/0/0/0/0/0 Lore% 22 Gallery% 35 Achievement% 29 Wizard Run 0 Options --------- Layout 1 ASCII 0 Keyboard 0 Movement Mouse Keybinds 0 Fullscreen 2 Font 48/Smallcaps Map View 50x35 Zoom Use 0% Tactical HUD 1 Map Filters NONE Filters NONE Steam 1 RUN: 42a0f8a4-97c8-4667-a012-66e463223b09